bitfinex-derivatives/quotes_SOLF0:USTF0_20250705
["timestamp","ask_amount","ask_price","bid_price","bid_amount"]
[1751749840043,8.82545398,146.92,146.9,9.82229512]
[1751749840344,9.54837978,146.95,146.91,6.8052]
[1751749840545,8.82545407,146.94,146.9,3.01689512]
[1751749840738,8.82545407,146.93,146.9,3.01689512]
[1751749840939,8.82545407,146.92,146.9,9.82219512]
[1751749841139,6.8043,146.93,146.9,9.82219512]
[1751749841342,8.82543755,146.92,146.9,9.82219512]
[1751749841537,6.8043,146.93,146.9,9.82219512]
[1751749841740,8.82545408,146.92,146.9,9.82219512]
[1751749841947,6.8043,146.93,146.9,9.82212189]
[1751749842247,8.82545408,146.92,146.9,9.82212189]
[1751749842447,6.8043,146.93,146.9,9.82212189]
[1751749842746,8.82545416,146.92,146.9,9.82212189]
[1751749842945,6.8043,146.93,146.9,9.82212189]
[1751749843148,8.82545416,146.92,146.9,9.82212189]
[1751749843344,6.8043,146.93,146.9,9.82212189]
[1751749843539,8.82545425,146.92,146.9,9.82212189]
[1751749843744,6.8043,146.93,146.9,9.82212189]
[1751749843947,8.82545425,146.92,146.9,9.82212189]
[1751749844245,6.8043,146.93,146.9,9.82212189]
[1751749844444,8.82407505,146.92,146.9,9.82212189]
[1751749844648,6.8043,146.93,146.9,9.82212189]
[1751749844947,8.82407505,146.92,146.9,9.82212189]
[1751749845147,6.8043,146.93,146.9,9.82212189]
[1751749845347,8.82407505,146.92,146.9,9.82212189]
[1751749845550,6.8043,146.93,146.9,9.82212189]
[1751749845748,8.8240916,146.92,146.9,9.82212189]
[1751749845947,6.8043,146.93,146.9,9.82212189]
[1751749846148,8.8240916,146.92,146.9,9.82212189]
[1751749846350,6.8043,146.93,146.9,9.82212189]
[1751749846650,8.82410813,146.92,146.9,9.82214732]
[1751749846848,6.8043,146.93,146.9,9.82214732]
[1751749847049,8.82409174,146.92,146.9,9.82214732]
[1751749847247,6.8043,146.93,146.9,9.82214732]
[1751749847447,8.82407528,146.92,146.9,9.82214732]
[1751749847650,6.8043,146.93,146.9,9.82214732]
[1751749847850,8.83107838,146.92,146.9,9.82214732]
[1751749848051,6.8043,146.93,146.9,9.82214732]
[1751749848250,8.83107838,146.92,146.9,9.82214732]
[1751749848450,6.8043,146.93,146.9,9.82214732]
[1751749848645,8.83107851,146.92,146.9,9.82214732]
[1751749848853,6.8043,146.93,146.9,9.82214732]
[1751749849051,8.83107851,146.92,146.9,9.82214732]
[1751749849249,6.8043,146.93,146.9,9.82214732]
[1751749849551,8.83107865,146.92,146.9,9.82214732]
[1751749849751,6.8043,146.93,146.9,9.82214732]
[1751749849951,8.83107628,146.92,146.9,9.82214732]
[1751749850152,6.8043,146.93,146.9,9.82214732]
[1751749850351,8.83107628,146.92,146.9,9.82214732]
[1751749850550,6.8043,146.93,146.9,9.82214732]
[1751749850749,8.83107751,146.92,146.9,9.82214732]
[1751749850951,6.8043,146.93,146.9,9.82214732]
[1751749851144,8.83107751,146.92,146.9,9.82214732]
[1751749851344,6.8043,146.93,146.9,9.82214732]
[1751749851550,16.49930634,146.92,146.9,9.82214732]
[1751749851751,2.856859,146.91,146.9,9.82214732]
[1751749854962,2.86382974,146.91,146.9,9.82214732]
[1751749855765,7.67520238,146.91,146.9,9.82214732]
[1751749857068,7.67520238,146.91,146.9,3.01684732]
[1751749858661,2.86382974,146.91,146.9,3.01684732]
[1751749858867,7.67520264,146.91,146.9,3.01684732]
[1751749865170,2.86382974,146.91,146.9,3.01684732]
[1751749865373,7.67518558,146.91,146.9,3.01684732]
[1751749872676,7.67518558,146.91,146.9,9.82244732]
[1751749872876,14.9324915,146.97,146.9,9.82244732]
[1751749872877,2.2196,146.97,146.9,3.01542188]
[1751749873173,2.2196,146.97,146.96,3.01542188]
[1751749873378,15.94918745,146.97,146.95,198.23542188]
[1751749873575,8.82949083,146.96,146.95,198.23542188]
[1751749874177,15.63239083,146.96,146.95,198.23542188]
[1751749876478,15.63239083,146.96,146.95,195.22]
[1751749879771,9.56182144,146.99,146.95,198.23542188]
[1751749879971,7.94662871,146.98,146.96,195.18]
[1751749880174,3.01542188,146.97,146.96,195.18]
[1751749880379,9.81782188,146.97,146.96,195.18]
[1751749881282,14.74877409,146.97,146.96,195.18]
[1751749883183,6.8034,146.95,146.93,241.34]
[1751749883683,6.8034,146.95,146.93,248.1442]
[1751749884483,3.01542188,146.96,146.93,248.1442]
[1751749884484,9.81852188,146.96,146.93,248.1442]
[1751749886185,9.81852188,146.96,146.93,52.9642]
[1751749886484,9.81852188,146.96,146.94,195.18]
[1751749887686,6.8031,146.96,146.94,195.18]
[1751749887886,9.81852188,146.96,146.94,195.18]
[1751749888889,17.31634332,146.99,146.94,198.19542188]
[1751749889089,7.56829974,146.98,146.97,3.01542188]
[1751749889296,2.3479,146.99,146.97,3.01542188]
[1751749889482,2.3479,146.99,146.97,9.81782188]
[1751749892289,2.3479,146.99,146.98,9.81732188]
[1751749892496,4.76914748,146.99,146.98,9.81732188]
[1751749892795,3.01542188,147.02,146.98,3.01542188]
[1751749892995,16.30967449,147.01,146.99,9.81672188]
[1751749893196,16.30967449,147.0,146.99,9.81672188]
[1751749893496,16.30872664,147.0,146.99,9.81672188]
[1751749893995,16.30872664,147.0,146.99,6.8013]
[1751749894186,7.54678845,147.0,146.99,6.8013]
[1751749894390,16.30698587,147.0,146.98,9.81712188]
[1751749894585,9.81582188,147.02,146.98,9.81712188]
[1751749894789,16.30717915,147.01,146.98,9.81712188]
[1751749894997,16.30717915,147.0,146.98,9.81712188]
[1751749895295,9.81582188,147.02,146.98,9.81712188]
[1751749895494,16.30478337,147.01,146.98,9.81712188]
[1751749895695,16.30478337,147.0,146.98,9.81712188]
[1751749895895,9.81582188,147.02,146.98,9.81712188]
[1751749896094,23.1053837,147.01,146.98,9.81712188]
[1751749896287,16.3047837,147.0,146.98,9.81712188]
[1751749896495,6.8006,147.01,146.98,9.81712188]
[1751749896695,16.30274572,147.0,146.98,9.81712188]
[1751749896895,6.8006,147.01,146.98,9.81712188]
[1751749897096,6.8006,147.01,146.98,3.01542188]
[1751749897097,16.32092689,147.0,146.98,3.01542188]
[1751749897297,6.8006,147.01,146.98,3.01542188]
[1751749897498,16.31921615,147.0,146.98,3.01542188]
[1751749897698,6.8006,147.01,146.98,3.01542188]
[1751749897898,16.31921615,147.0,146.98,3.01542188]
[1751749898098,6.8006,147.01,146.98,3.01542188]
[1751749898288,16.31921135,147.0,146.98,3.01542188]
[1751749898493,6.8006,147.01,146.98,3.01542188]
[1751749898692,7.54498712,147.0,146.98,3.01542188]
[1751749898995,6.8006,147.01,146.98,3.01542188]
[1751749900800,6.801,147.0,146.98,3.01542188]
[1751749904201,5.28362188,147.03,146.99,3.01542188]
[1751749904403,7.58645674,147.02,146.99,3.01542188]
[1751749904602,5.28362188,147.03,146.99,3.01542188]
[1751749904802,7.82107246,147.02,146.99,3.01542188]
[1751749904997,3.01542188,147.02,146.99,3.01542188]
[1751749905301,6.8008,147.01,146.99,3.01542188]
[1751749906802,6.8008,147.01,146.99,9.81682188]
[1751749906998,6.8008,147.01,146.99,3.01542188]
[1751749907504,6.8008,147.01,147.0,3.01542188]
[1751749909408,6.8008,147.01,146.99,3.01542188]
[1751749917507,6.8008,147.01,146.98,52.9417]
[1751749917714,3.01542188,146.99,146.98,46.14]
[1751749917909,10.64888161,146.99,146.98,46.14]
[1751749918314,17.45038161,146.99,146.98,46.14]
[1751749921610,26.25320287,146.99,146.98,46.14]
[1751749931422,21.4084838,146.99,146.98,46.14]
[1751749931618,26.21723072,146.99,146.98,46.14]
[1751749933323,31.1882404,146.99,146.98,46.14]
[1751749933624,31.1882404,146.99,146.96,6.8027]
[1751749933625,6.8021,146.98,146.96,6.8027]
[1751749953034,6.8017,146.99,146.96,9.81812188]
[1751749953233,16.37524889,146.98,146.96,9.81812188]
[1751749953432,6.8017,146.99,146.96,9.81812188]
[1751749953635,7.56420362,146.98,146.96,9.81812188]
[1751749953831,3.01542188,146.99,146.96,6.8027]
[1751749954030,16.37663711,146.98,146.96,6.8027]
[1751749954231,3.01542188,146.99,146.96,6.8027]
[1751749954533,23.18077111,146.98,146.96,6.8027]
[1751749954732,6.802,146.98,146.96,6.8027]
[1751749956636,4.79992871,146.97,146.96,6.8027]
[1751749958239,7.56839974,146.97,146.96,6.8027]
[1751749959239,16.38994843,146.97,146.96,6.8027]
[1751749959638,9.81712188,146.99,146.96,6.8027]
[1751749959839,16.39321881,146.98,146.96,6.8027]
[1751749960040,16.39321881,146.97,146.96,6.8027]
[1751749963141,21.36607014,146.97,146.96,6.8027]
[1751749964237,16.39718777,146.97,146.96,6.8027]
[1751749964442,21.37045585,146.97,146.96,6.8027]
[1751749966144,16.39718777,146.97,146.96,6.8027]
[1751749966443,21.35760741,146.97,146.96,6.8027]
[1751749967041,21.3577325,146.97,146.96,6.8027]
[1751749967643,21.3577325,146.97,146.96,201.8627]
[1751749968146,16.39731286,146.97,146.96,201.8627]
[1751749974952,16.39731286,146.97,146.96,6.8027]
[1751749975251,33.89251498,146.97,146.94,46.14]
[1751749975551,33.89251498,146.97,146.94,241.18]
[1751749975552,31.16960647,146.96,146.94,241.18]
[1751749975753,21.35010512,146.95,146.94,241.18]
[1751749976252,21.35302963,146.95,146.94,247.9838]
[1751749976749,21.35302963,146.95,146.94,241.18]
[1751749976950,21.35302963,146.95,146.94,46.14]
[1751749977152,16.39723766,146.95,146.94,241.18]
[1751749978853,16.39723766,146.95,146.94,247.9838]
[1751749979151,16.39274349,146.95,146.94,247.9838]
[1751749982656,16.39274349,146.95,146.94,6.8038]
[1751749982857,16.39274349,146.95,146.94,201.8438]
[1751749983057,16.39274349,146.95,146.94,204.86020135]
[1751749984355,16.37407959,146.95,146.94,204.86020135]
[1751749986058,16.37407959,146.95,146.94,201.8438]
[1751749993063,11.58708643,146.95,146.94,201.8438]
[1751749993266,16.36040867,146.95,146.94,201.8438]
[1751749996174,16.36023523,146.95,146.94,201.8438]
[1751750002177,16.35598739,146.95,146.94,201.8438]
[1751750002675,16.35604018,146.95,146.94,201.8438]
[1751750014091,11.58219825,146.95,146.94,201.8438]
[1751750014391,16.35137031,146.95,146.94,201.8438]
[1751750017094,11.58219825,146.95,146.94,201.8438]
[1751750017296,16.35377189,146.95,146.94,201.8438]
[1751750018094,13.59294436,146.95,146.94,201.8438]
[1751750018297,21.2939277,146.95,146.94,201.8438]
[1751750020195,21.30299572,146.95,146.94,201.8438]
[1751750023097,21.30762953,146.95,146.94,201.8438]
[1751750026103,16.38287545,146.95,146.94,201.8438]
[1751750028997,11.60554959,146.95,146.94,201.8438]
[1751750029203,7.55714221,146.95,146.94,201.8438]
[1751750031705,7.55714221,146.95,146.94,204.85923658]
[1751750035609,2.78417887,146.95,146.94,204.85923658]
[1751750035811,7.55129443,146.95,146.94,204.85923658]
[1751750038416,7.55129443,146.95,146.94,201.8438]
[1751750039214,9.81753658,146.98,146.94,201.8438]
[1751750039417,21.2476675,146.97,146.94,201.8438]
[1751750039617,16.32984254,146.96,146.94,201.8438]
[1751750039914,6.8024,146.97,146.94,201.8438]
[1751750040114,16.32966439,146.96,146.94,201.8438]
[1751750040417,17.24809531,146.99,146.95,6.8033]
[1751750040614,21.24679361,146.98,146.95,6.8033]
[1751750040814,21.24679361,146.97,146.94,204.85903658]
[1751750041018,21.24691545,146.96,146.94,201.8436]
[1751750041222,7.54987628,146.95,146.94,201.8436]
[1751750041517,16.33484092,146.95,146.94,201.8436]
[1751750045213,16.33484092,146.95,146.94,195.04]
[1751750045616,21.25320126,146.95,146.94,195.04]
[1751750045817,21.25320126,146.95,146.94,201.8438]
[1751750046113,16.33510689,146.95,146.94,201.8438]
[1751750047719,13.55956323,146.95,146.94,201.8438]
[1751750050025,8.78496464,146.95,146.94,201.8438]
[1751750050719,8.78496464,146.95,146.93,46.08]
[1751750050924,8.78666965,146.94,146.93,46.08]
[1751750051129,8.78666965,146.94,146.93,244.03675029]
[1751750051430,8.78666965,146.94,146.93,250.84095029]
[1751750052128,19.34190902,146.98,146.94,6.8035]
[1751750052329,8.78625693,146.97,146.95,194.94]
[1751750052530,8.78625693,146.96,146.95,194.94]
[1751750054736,11.56187933,146.96,146.95,194.94]
[1751750058336,14.57862962,146.96,146.95,194.92]
[1751750058543,14.57862962,146.96,146.94,194.92]
[1751750058741,19.35611034,146.95,146.94,194.92]
[1751750059535,26.15971034,146.95,146.94,194.92]
[1751750059744,19.35611034,146.95,146.93,46.08]
[1751750059942,16.58048794,146.94,146.93,241.0]
[1751750060140,23.45011884,146.94,146.93,241.0]
[1751750060341,26.226294,146.94,146.93,241.0]
[1751750060543,23.20954371,146.94,146.93,241.0]
[1751750060744,26.226294,146.94,146.93,46.08]
[1751750060943,19.422494,146.94,146.89,46.08]
[1751750061141,3.01675029,146.91,146.9,194.92]
[1751750061341,11.86883812,146.91,146.9,194.92]
[1751750061643,8.85208783,146.91,146.9,194.92]
[1751750062247,11.86883812,146.91,146.9,194.92]
[1751750062544,11.86212972,146.91,146.9,194.92]
[1751750063044,19.4878021,146.91,146.9,194.92]
[1751750065342,16.65299741,146.91,146.9,194.92]
[1751750065645,16.44524471,146.91,146.88,194.94]
[1751750065840,16.43706968,146.9,146.88,194.94]
[1751750066142,9.82225029,146.91,146.88,201.7463]
[1751750066342,7.59776593,146.9,146.88,201.7463]
[1751750066540,9.82225029,146.91,146.88,201.7463]
[1751750066738,7.59790905,146.9,146.88,201.7463]
[1751750066936,9.82225029,146.91,146.88,201.7463]
[1751750067240,7.59790906,146.9,146.88,201.7463]
[1751750067438,9.82225029,146.91,146.88,201.7463]
[1751750067744,17.41776169,146.9,146.88,194.94]
[1751750067942,9.82255029,146.9,146.88,194.94]
[1751750070754,9.82285029,146.89,146.88,194.94]
[1751750070946,9.82285029,146.89,146.86,6.8073]
[1751750071141,3.01675029,146.88,146.85,46.08]
[1751750071441,3.01675029,146.87,146.86,194.96]
[1751750072150,9.82365029,146.88,146.86,194.96]
[1751750073253,9.82385029,146.87,146.85,46.08]
[1751750073551,9.82385029,146.87,146.85,241.04]
[1751750076560,3.01675029,146.87,146.85,241.04]
[1751750076760,3.01675029,146.87,146.85,247.8479]
[1751750078161,3.01675029,146.86,146.85,241.06]
[1751750078560,3.01675029,146.86,146.85,247.868]
[1751750079262,6.8068,146.88,146.85,247.868]
[1751750079453,3.01675029,146.87,146.85,52.888]
[1751750079652,3.01675029,146.87,146.86,195.0]
[1751750082960,9.82375029,146.87,146.86,195.0]
[1751750091171,3.01675029,146.87,146.81,46.08]
[1751750091372,3.01675029,146.85,146.82,195.0]
[1751750091871,9.82495029,146.85,146.82,201.8089]
[1751750092671,9.82495029,146.85,146.83,6.8088]
[1751750092867,9.82445029,146.86,146.84,195.0]
[1751750093071,3.01675029,146.88,146.84,198.01675029]
[1751750093372,3.01675029,146.88,146.85,6.8077]
[1751750093573,3.01675029,146.88,146.86,195.0]
[1751750094673,6.807,146.87,146.86,195.0]
[1751750096176,9.82375029,146.87,146.86,195.0]
[1751750096477,9.82375029,146.87,146.84,195.02]
[1751750097074,9.82375029,146.87,146.84,201.8281]
[1751750099379,6.8075,146.86,146.84,201.8281]
[1751750100178,6.8075,146.86,146.84,195.02]
[1751750100874,6.8075,146.86,146.83,6.8087]
[1751750101083,6.8075,146.86,146.84,201.8284]
[1751750101282,9.82395029,146.87,146.84,201.8284]
[1751750103583,6.8072,146.87,146.84,201.8284]
[1751750104681,9.82395029,146.87,146.84,201.8284]
[1751750105079,6.8066,146.88,146.85,6.8076]
[1751750105285,2.79939656,146.87,146.85,3.01964315]
[1751750105483,6.8066,146.88,146.85,3.01964315]
[1751750105683,6.8066,146.88,146.85,6.8076]
[1751750106084,2.79936718,146.87,146.85,6.8076]
[1751750106285,6.8066,146.88,146.85,6.8076]
[1751750106483,2.80046041,146.87,146.85,6.8076]
[1751750106686,6.8066,146.88,146.85,6.8076]
[1751750106982,2.8004604,146.87,146.85,6.8076]
[1751750107184,6.8066,146.88,146.85,6.8076]
[1751750107389,2.8016067,146.87,146.85,6.8076]
[1751750107589,6.8066,146.88,146.85,6.8076]
[1751750107784,2.8016067,146.87,146.86,6.8074]
[1751750108189,7.52402317,146.87,146.86,6.8074]
[1751750108389,16.27084556,146.87,146.86,6.8074]
[1751750111497,16.27084556,146.87,146.86,9.82672219]
[1751750111694,8.74682239,146.87,146.86,9.82672219]
[1751750112195,9.82492219,146.91,146.87,6.8068]
[1751750112397,16.30455304,146.9,146.87,9.82612219]
[1751750112596,16.30455304,146.89,146.87,9.82612219]
[1751750112797,3.01932219,146.91,146.87,9.82612219]
[1751750112798,2.80600573,146.88,146.87,9.82612219]
[1751750114993,7.57666319,146.88,146.87,9.82612219]
[1751750119699,9.82462219,146.91,146.88,6.8062]
[1751750119896,16.38363003,146.9,146.88,6.8062]
[1751750120097,2.81378373,146.89,146.88,6.8062]
[1751750120297,9.82462219,146.91,146.88,6.8062]
[1751750120594,16.38888918,146.9,146.88,6.8062]
[1751750120796,9.82462219,146.91,146.88,6.8062]
[1751750120995,16.38888918,146.9,146.88,6.8062]
[1751750121194,9.82462219,146.91,146.88,6.8062]
[1751750121402,16.3855158,146.9,146.88,6.8062]
[1751750121597,9.82462219,146.91,146.88,6.8062]
[1751750121898,16.3855158,146.9,146.88,6.8062]
[1751750122094,9.82462219,146.91,146.88,6.8062]
[1751750122300,16.38392439,146.9,146.88,6.8062]
[1751750122500,9.82462219,146.91,146.88,6.8062]
[1751750122698,16.3825234,146.9,146.88,6.8062]
[1751750122899,9.82462219,146.91,146.88,6.8062]
[1751750123101,7.590653,146.9,146.88,6.8062]
[1751750123298,9.82462219,146.91,146.88,6.8062]
[1751750123593,7.58877101,146.9,146.88,6.8062]
[1751750123797,9.82462219,146.91,146.88,6.8062]
[1751750123997,7.58876927,146.9,146.88,6.8062]
[1751750124298,9.82462219,146.91,146.88,6.8062]
[1751750124497,4.79799366,146.9,146.88,6.8062]
[1751750124799,9.82462219,146.91,146.88,6.8062]
[1751750125000,4.79799366,146.9,146.88,6.8062]
[1751750125200,9.82462219,146.91,146.88,6.8062]
[1751750128902,9.82462219,146.91,146.87,6.8068]
[1751750129098,9.82462219,146.91,146.87,9.82612219]
[1751750129304,3.01932219,146.9,146.87,9.82612219]
[1751750129503,3.01932219,146.9,146.87,6.8068]
[1751750129705,3.01932219,146.89,146.85,49.09932219]
[1751750131508,9.82572219,146.89,146.85,55.90692219]
[1751750131805,9.82572219,146.89,146.85,49.09932219]
[1751750132105,9.82572219,146.89,146.86,6.8072]
[1751750137010,3.01932219,146.89,146.86,6.8072]
[1751750138105,9.82552219,146.89,146.86,6.8072]
[1751750138913,7.55422207,146.88,146.86,6.8072]
[1751750139212,9.82552219,146.89,146.86,6.8072]
[1751750139412,7.55482699,146.88,146.86,6.8072]
[1751750139610,9.82552219,146.89,146.86,6.8072]
[1751750139811,7.55482699,146.88,146.86,6.8072]
[1751750140011,9.82552219,146.89,146.86,6.8072]
[1751750140212,16.3243254,146.88,146.85,49.09932219]
[1751750140515,3.01932219,146.9,146.86,3.01932219]
[1751750140713,16.32341078,146.89,146.86,3.01932219]
[1751750140915,8.76979136,146.88,146.86,9.82642219]
[1751750141216,6.8059,146.9,146.86,9.82642219]
[1751750141416,16.32384304,146.89,146.87,9.82632219]
[1751750141613,8.77012399,146.88,146.87,9.82632219]
[1751750142419,6.8059,146.9,146.87,9.82632219]
[1751750142715,16.32542709,146.89,146.87,9.82632219]
[1751750142906,6.8059,146.9,146.87,6.807]
[1751750143108,7.55435095,146.89,146.87,6.807]
[1751750143316,6.8059,146.9,146.87,6.807]
[1751750143509,7.55505906,146.89,146.87,6.807]
[1751750143708,6.8059,146.9,146.87,6.807]
[1751750143916,7.55505906,146.89,146.87,6.807]
[1751750144118,6.8059,146.9,146.87,6.807]
[1751750144318,16.33901562,146.89,146.87,6.807]
[1751750144514,6.8059,146.9,146.87,6.807]
[1751750144708,16.34099861,146.89,146.87,6.807]
[1751750144915,6.8059,146.9,146.87,6.807]
[1751750145111,16.34099861,146.89,146.87,6.807]
[1751750145311,9.82522219,146.9,146.87,6.807]
[1751750145511,16.34144607,146.89,146.87,6.807]
[1751750145713,9.82522219,146.9,146.87,6.807]
[1751750145911,16.34144607,146.89,146.87,6.807]
[1751750146111,9.82522219,146.9,146.87,6.807]
[1751750146314,16.341682,146.89,146.87,6.807]
[1751750146511,9.82522219,146.9,146.87,6.807]
[1751750146814,16.34327121,146.89,146.87,6.807]
[1751750147012,9.82522219,146.9,146.87,6.807]
[1751750147315,16.35343956,146.89,146.87,6.807]
[1751750147517,9.82522219,146.9,146.87,6.807]
[1751750147713,16.35692156,146.89,146.87,6.807]
[1751750147914,9.82522219,146.9,146.87,6.807]
[1751750148124,16.35692156,146.89,146.87,6.807]
[1751750148324,9.82522219,146.9,146.87,6.807]
[1751750148627,16.36098111,146.89,146.87,6.807]
[1751750148822,9.82522219,146.9,146.87,6.807]
[1751750149123,23.16708111,146.89,146.86,9.82662219]
[1751750149316,16.36098111,146.88,146.86,9.82662219]
[1751750149520,6.8061,146.89,146.86,9.82662219]
[1751750149825,16.37487132,146.88,146.86,9.82662219]
[1751750150025,6.8061,146.89,146.86,9.82662219]
[1751750150224,16.38549005,146.88,146.86,9.82662219]
[1751750150421,6.8061,146.89,146.86,9.82662219]
[1751750150622,16.38630488,146.88,146.86,9.82662219]
[1751750150824,6.8061,146.89,146.86,9.82662219]
[1751750151023,16.38630488,146.88,146.86,9.82662219]
[1751750151319,6.8061,146.89,146.86,9.82662219]
[1751750151518,16.38780027,146.88,146.86,9.82662219]
[1751750151824,6.8061,146.89,146.86,9.82662219]
[1751750152024,16.38780027,146.88,146.86,9.82662219]
[1751750152224,6.8061,146.89,146.86,9.82662219]
[1751750152518,16.389283,146.88,146.86,9.82662219]
[1751750152725,6.8061,146.89,146.86,9.82662219]
[1751750152924,16.389283,146.88,146.86,9.82662219]
[1751750153222,6.8061,146.89,146.86,9.82662219]
[1751750153426,16.39088291,146.88,146.86,6.8073]
[1751750153625,9.82542219,146.89,146.86,6.8073]
[1751750153824,16.39088291,146.88,146.86,6.8073]
[1751750154124,9.82542219,146.89,146.86,6.8073]
[1751750154324,16.38164333,146.88,146.86,6.8073]
[1751750154520,9.82542219,146.89,146.86,6.8073]
[1751750154720,16.38098018,146.88,146.86,6.8073]
[1751750154920,9.82542219,146.89,146.86,6.8073]
[1751750155124,16.37185663,146.88,146.86,6.8073]
[1751750155325,9.82542219,146.89,146.86,6.8073]
[1751750155526,16.37375021,146.88,146.86,6.8073]
[1751750155724,9.82542219,146.89,146.86,6.8073]
[1751750155917,16.37375021,146.88,146.86,6.8073]
[1751750156122,9.82542219,146.89,146.86,6.8073]
[1751750156322,16.37477189,146.88,146.86,6.8073]
[1751750156524,3.01932219,146.89,146.87,6.807]
[1751750156724,16.37571857,146.88,146.87,6.807]
[1751750161128,7.57983299,146.88,146.87,9.82632219]
[1751750161324,5.39742219,146.92,146.89,6.8059]
[1751750161524,16.35224953,146.91,146.89,9.82522219]
[1751750161823,2.3781,146.92,146.89,9.82522219]
[1751750161824,16.35224953,146.9,146.89,9.82522219]
[1751750162834,16.35224953,146.9,146.89,6.8059]
[1751750164436,16.35224953,146.9,146.88,9.82562219]
[1751750164640,12.20222219,146.92,146.88,9.82562219]
[1751750164837,16.37230011,146.91,146.88,9.82562219]
[1751750165036,16.37230011,146.9,146.88,9.82562219]
[1751750165236,12.20222219,146.92,146.88,9.82562219]
[1751750165539,16.39023516,146.91,146.88,9.82562219]
[1751750165738,19.40955735,146.9,146.87,6.8068]
[1751750165937,16.39023516,146.89,146.87,9.82612219]
[1751750166138,3.01932219,146.9,146.87,9.82612219]
[1751750166440,16.39142146,146.89,146.87,9.82612219]
[1751750166736,3.01932219,146.9,146.87,9.82612219]
[1751750166936,16.39182527,146.89,146.87,52.8668]
[1751750167237,3.01932219,146.9,146.87,52.8668]
[1751750167536,16.39223538,146.89,146.87,52.8668]
[1751750167838,3.01932219,146.9,146.87,52.8668]
[1751750168034,16.39223538,146.89,146.87,52.8668]
[1751750168234,3.01932219,146.9,146.87,52.8668]
[1751750168435,16.39299868,146.89,146.87,46.06]
[1751750168636,9.82502219,146.9,146.87,46.06]
[1751750168836,16.39299868,146.89,146.87,46.06]
[1751750169037,9.82502219,146.9,146.87,46.06]
[1751750169335,16.39344485,146.89,146.87,46.06]
[1751750169638,9.82502219,146.9,146.87,52.867]
[1751750169839,16.39381115,146.89,146.87,52.867]
[1751750170033,9.82502219,146.9,146.87,52.867]
[1751750170238,16.39428362,146.89,146.87,52.867]
[1751750170434,9.82502219,146.9,146.87,52.867]
[1751750170435,4.80611039,146.88,146.87,52.867]
[1751750171443,4.80611039,146.88,146.87,55.88632219]
[1751750173247,7.59174745,146.88,146.87,55.88632219]
[1751750181257,9.52913303,146.92,146.89,6.806]
[1751750181448,16.37731082,146.91,146.87,46.06]
[1751750181651,8.79664523,146.9,146.87,46.06]
[1751750181953,21.69085522,146.95,146.91,6.8051]
[1751750182152,21.18546185,146.94,146.91,9.82442219]
[1751750182358,16.37409301,146.93,146.91,9.82442219]
[1751750182653,16.37409301,146.92,146.91,9.82442219]
[1751750183155,16.37224569,146.92,146.91,9.82442219]
[1751750184156,7.57715609,146.92,146.91,9.82442219]
[1751750185059,4.79364846,146.92,146.91,55.88442219]
[1751750186359,2.3388,146.95,146.92,6.8045]
[1751750186558,16.42126436,146.94,146.92,9.82382219]
[1751750186757,16.42126436,146.93,146.92,9.82382219]
[1751750188955,4.82891683,146.93,146.92,9.82382219]
[1751750189356,7.62224736,146.93,146.92,9.82382219]
[1751750189658,7.62224736,146.93,146.92,3.01932219]
[1751750189857,7.6210531,146.93,146.92,3.01932219]
[1751750190352,4.83684522,146.93,146.92,3.01932219]
[1751750190558,16.44266006,146.93,146.91,46.06]
[1751750190759,9.82332219,146.94,146.91,46.06]
[1751750190960,16.44219691,146.93,146.91,46.06]
[1751750191161,9.82332219,146.94,146.91,46.06]
[1751750191360,16.44109182,146.93,146.91,46.06]
[1751750191565,9.82332219,146.94,146.91,46.06]
[1751750191760,16.44109182,146.93,146.91,46.06]
[1751750191960,4.83596293,146.92,146.91,46.06]
[1751750192462,9.82332219,146.94,146.91,46.06]
[1751750192663,16.44029751,146.93,146.91,46.06]
[1751750192866,9.82332219,146.94,146.91,46.06]
[1751750193058,16.44029751,146.93,146.91,46.06]
[1751750193266,9.82332219,146.94,146.91,46.06]
[1751750193467,16.43933158,146.93,146.91,46.06]
[1751750193664,9.82332219,146.94,146.91,46.06]
[1751750193865,16.43933158,146.93,146.91,46.06]
[1751750194059,7.85478175,146.92,146.91,46.06]
[1751750194266,19.45970337,146.92,146.88,3.01932219]
[1751750194466,9.82402219,146.92,146.89,6.8058]